[Event "December 5 Early 2023"]
[Site "https://www.chess.com"]
[Date "2023.12.05"]
[Round "11"]
[White "Subramanian, Anusha"]
[Black "Florianovitz, Derlei Alex"]
[Result "1/2-1/2"]
[Board "141"]
[TimeControl "180+1"]
[WhiteFideId "477710"]
[BlackFideId "2114178"]
[WhiteElo "2038"]
[BlackElo "2196"]
[WhiteTeam "ENG"]
[BlackTeam "BRA"]
[WhiteClock "0:00:13"]
[BlackClock "0:00:02"]

1. e4 {[%clk 0:03:00]}  e6 {[%clk 0:02:51]} 2. d4 {[%clk 0:03:00]}  d5 {[%clk 0:02:51]} 3. Nd2 {[%clk 0:02:57]}  c5 {[%clk 0:02:51]} 4. Ngf3 {[%clk 0:02:55]}  cxd4 {[%clk 0:02:50]} 5. exd5 {[%clk 0:02:54]}  Qxd5 {[%clk 0:02:50]} 6. Bc4 {[%clk 0:02:52]}  Qd7 {[%clk 0:02:51]} 7. Nb3 {[%clk 0:02:51]}  Nc6 {[%clk 0:02:52]} 8. O-O {[%clk 0:02:47]}  a6 {[%clk 0:02:51]} 9. Nbxd4 {[%clk 0:02:46]}  Nxd4 {[%clk 0:02:52]} 10. Qxd4 {[%clk 0:02:43]}  Qxd4 {[%clk 0:02:52]} 11. Nxd4 {[%clk 0:02:44]}  b5 {[%clk 0:02:52]} 12. Bd3 {[%clk 0:02:41]}  Bb7 {[%clk 0:02:52]} 13. c3 {[%clk 0:02:34]}  Nf6 {[%clk 0:02:52]} 14. a4 {[%clk 0:02:33]}  b4 {[%clk 0:02:51]} 15. cxb4 {[%clk 0:02:31]}  Bxb4 {[%clk 0:02:52]} 16. Be3 {[%clk 0:02:18]}  O-O {[%clk 0:02:49]} 17. Rac1 {[%clk 0:02:16]}  Nd5 {[%clk 0:02:49]} 18. Nc2 {[%clk 0:01:49]}  Bd6 {[%clk 0:02:43]} 19. Bc4 {[%clk 0:01:35]}  Rfc8 {[%clk 0:02:38]} 20. b3 {[%clk 0:01:28]}  Rd8 {[%clk 0:02:07]} 21. Rfd1 {[%clk 0:01:24]}  Rac8 {[%clk 0:01:51]} 22. Bg5 {[%clk 0:01:11]}  f6 {[%clk 0:01:51]} 23. Be3 {[%clk 0:01:08]}  Kf7 {[%clk 0:01:49]} 24. Re1 {[%clk 0:01:02]}  Nxe3 {[%clk 0:01:41]} 25. Nxe3 {[%clk 0:01:01]}  Bf4 {[%clk 0:01:18]} 26. Rcd1 {[%clk 0:00:54]}  Bxe3 {[%clk 0:01:10]} 27. fxe3 {[%clk 0:00:43]}  Ke7 {[%clk 0:01:07]} 28. Kf2 {[%clk 0:00:43]}  a5 {[%clk 0:00:58]} 29. g3 {[%clk 0:00:41]}  e5 {[%clk 0:00:55]} 30. Ke2 {[%clk 0:00:32]}  Rxd1 {[%clk 0:00:52]} 31. Rxd1 {[%clk 0:00:30]}  Rd8 {[%clk 0:00:53]} 32. Rxd8 {[%clk 0:00:29]}  Kxd8 {[%clk 0:00:52]} 33. Bd3 {[%clk 0:00:26]}  h6 {[%clk 0:00:52]} 34. Bf5 {[%clk 0:00:25]}  Kc7 {[%clk 0:00:51]} 35. Kd3 {[%clk 0:00:26]}  Kd6 {[%clk 0:00:48]} 36. Kc4 {[%clk 0:00:20]}  Ba6+ {[%clk 0:00:47]} 37. Kc3 {[%clk 0:00:20]}  Kc5 {[%clk 0:00:47]} 38. h4 {[%clk 0:00:20]}  Bb7 {[%clk 0:00:40]} 39. Be6 {[%clk 0:00:18]}  Be4 {[%clk 0:00:33]} 40. Bg4 {[%clk 0:00:16]}  g5 {[%clk 0:00:27]} 41. hxg5 {[%clk 0:00:15]}  hxg5 {[%clk 0:00:27]} 42. Be2 {[%clk 0:00:15]}  f5 {[%clk 0:00:22]} 43. Bc4 {[%clk 0:00:14]}  f4 {[%clk 0:00:22]} 44. exf4 {[%clk 0:00:14]}  exf4 {[%clk 0:00:21]} 45. gxf4 {[%clk 0:00:14]}  gxf4 {[%clk 0:00:21]} 46. Bf1 {[%clk 0:00:14]}  Bh1 {[%clk 0:00:15]} 47. Bd3 {[%clk 0:00:09]}  f3 {[%clk 0:00:14]} 48. Bf1 {[%clk 0:00:09]}  Bg2 {[%clk 0:00:13]} 49. Bd3 {[%clk 0:00:06]}  f2 {[%clk 0:00:13]} 50. Kd2 {[%clk 0:00:05]}  f1=Q {[%clk 0:00:12]} 51. Bxf1 {[%clk 0:00:06]}  Bxf1 {[%clk 0:00:13]} 52. Kc3 {[%clk 0:00:06]}  Be2 {[%clk 0:00:13]} 53. Kb2 {[%clk 0:00:06]}  Kb4 {[%clk 0:00:13]} 54. Ka2 {[%clk 0:00:07]}  Bd1 {[%clk 0:00:12]} 55. Kb2 {[%clk 0:00:07]}  Bxb3 {[%clk 0:00:12]} 56. Kb1 {[%clk 0:00:06]}  Bxa4 {[%clk 0:00:11]} 57. Ka1 {[%clk 0:00:07]}  Bb3 {[%clk 0:00:11]} 58. Kb1 {[%clk 0:00:08]}  Ka3 {[%clk 0:00:11]} 59. Ka1 {[%clk 0:00:09]}  a4 {[%clk 0:00:11]} 60. Kb1 {[%clk 0:00:09]}  Bd5 {[%clk 0:00:11]} 61. Ka1 {[%clk 0:00:10]}  Kb4 {[%clk 0:00:11]} 62. Kb1 {[%clk 0:00:11]}  a3 {[%clk 0:00:12]} 63. Ka1 {[%clk 0:00:12]}  Be4 {[%clk 0:00:12]} 64. Ka2 {[%clk 0:00:12]}  Bc2 {[%clk 0:00:12]} 65. Ka1 {[%clk 0:00:12]}  Bb3 {[%clk 0:00:12]} 66. Kb1 {[%clk 0:00:12]}  a2+ {[%clk 0:00:13]} 67. Ka1 {[%clk 0:00:13]}  Ka3 {[%clk 0:00:02]} 1/2-1/2

[Event "December 5 Early 2023"]
[Site "https://www.chess.com"]
[Date "2023.12.05"]
[Round "11"]
[White "Feliz Dotel, Dewar Bienvenido"]
[Black "Skiadopoulos, Nikolaos"]
[Result "1-0"]
[Board "143"]
[TimeControl "180+1"]
[WhiteFideId "6402801"]
[BlackFideId "4200772"]
[WhiteElo "2069"]
[BlackElo "1777"]
[WhiteTeam "DOM"]
[BlackTeam "GRE"]
[WhiteClock "0:00:30"]
[BlackClock "0:00:00"]

1. d4 {[%clk 0:02:59]}  Nf6 {[%clk 0:02:56]} 2. e3 {[%clk 0:02:59]}  b6 {[%clk 0:02:50]} 3. Nf3 {[%clk 0:02:59]}  Bb7 {[%clk 0:02:50]} 4. Bd3 {[%clk 0:02:54]}  g6 {[%clk 0:02:46]} 5. Nbd2 {[%clk 0:02:48]}  Bg7 {[%clk 0:02:45]} 6. O-O {[%clk 0:02:48]}  d5 {[%clk 0:02:44]} 7. b4 {[%clk 0:02:46]}  a5 {[%clk 0:02:42]} 8. b5 {[%clk 0:02:45]}  O-O {[%clk 0:02:40]} 9. c4 {[%clk 0:02:45]}  dxc4 {[%clk 0:02:39]} 10. Bxc4 {[%clk 0:02:41]}  c5 {[%clk 0:02:37]} 11. bxc6 {[%clk 0:02:39]}  Nxc6 {[%clk 0:02:36]} 12. Ba3 {[%clk 0:02:36]}  Ne8 {[%clk 0:02:21]} 13. Rb1 {[%clk 0:02:33]}  Nd6 {[%clk 0:02:21]} 14. Be2 {[%clk 0:02:33]}  b5 {[%clk 0:02:15]} 15. Bxb5 {[%clk 0:02:31]}  Nxb5 {[%clk 0:02:14]} 16. Rxb5 {[%clk 0:02:31]}  Ba6 {[%clk 0:02:14]} 17. Qb3 {[%clk 0:02:21]}  Bxb5 {[%clk 0:02:10]} 18. Qxb5 {[%clk 0:02:22]}  Qc7 {[%clk 0:02:02]} 19. Rc1 {[%clk 0:02:22]}  Rfc8 {[%clk 0:02:01]} 20. d5 {[%clk 0:02:18]}  Na7 {[%clk 0:01:37]} 21. Qa6 {[%clk 0:01:48]}  Qd7 {[%clk 0:01:25]} 22. Qxa5 {[%clk 0:01:38]}  Nb5 {[%clk 0:01:15]} 23. Rxc8+ {[%clk 0:01:34]}  Rxc8 {[%clk 0:01:15]} 24. Qb4 {[%clk 0:01:30]}  Nxa3 {[%clk 0:00:54]} 25. Qxa3 {[%clk 0:01:31]}  Qxd5 {[%clk 0:00:45]} 26. Qxe7 {[%clk 0:01:26]}  Rc1+ {[%clk 0:00:41]} 27. Nf1 {[%clk 0:01:26]}  Bc3 {[%clk 0:00:30]} 28. h4 {[%clk 0:01:03]}  Rxf1+ {[%clk 0:00:28]} 29. Kh2 {[%clk 0:00:50]}  Rxf2 {[%clk 0:00:27]} 30. Kg3 {[%clk 0:00:33]}  Rxa2 {[%clk 0:00:26]} 31. h5 {[%clk 0:00:30]}  Qxh5 {[%clk 0:00:00]} 32. Ng5 {[%clk 0:00:30]} 1-0

[Event "December 5 Early 2023"]
[Site "https://www.chess.com"]
[Date "2023.12.05"]
[Round "11"]
[White "Teumer, Joerg, Dr."]
[Black "Saim, Mohamed Ilias"]
[Result "1-0"]
[Board "144"]
[TimeControl "180+1"]
[WhiteFideId "4643526"]
[BlackFideId "7900465"]
[WhiteElo "2109"]
[BlackElo "2003"]
[WhiteTeam "GER"]
[BlackTeam "ALG"]
[WhiteClock "0:00:15"]
[BlackClock "0:00:00"]

1. d4 {[%clk 0:02:59]}  Nf6 {[%clk 0:02:54]} 2. Bg5 {[%clk 0:02:57]}  c5 {[%clk 0:02:53]} 3. d5 {[%clk 0:02:39]}  Qb6 {[%clk 0:02:51]} 4. Nc3 {[%clk 0:02:38]}  Qxb2 {[%clk 0:02:40]} 5. Bd2 {[%clk 0:02:35]}  Qb6 {[%clk 0:02:32]} 6. e4 {[%clk 0:02:32]}  d6 {[%clk 0:02:31]} 7. f4 {[%clk 0:02:32]}  Bg4 {[%clk 0:02:28]} 8. Nf3 {[%clk 0:02:19]}  Nbd7 {[%clk 0:02:19]} 9. Be2 {[%clk 0:02:07]}  a6 {[%clk 0:02:17]} 10. h3 {[%clk 0:02:07]}  Bxf3 {[%clk 0:02:16]} 11. Bxf3 {[%clk 0:02:08]}  e6 {[%clk 0:02:13]} 12. dxe6 {[%clk 0:02:04]}  fxe6 {[%clk 0:02:13]} 13. Rb1 {[%clk 0:01:56]}  Qc7 {[%clk 0:02:05]} 14. e5 {[%clk 0:01:50]}  dxe5 {[%clk 0:02:04]} 15. Rxb7 {[%clk 0:01:50]}  Qc8 {[%clk 0:01:57]} 16. Rxd7 {[%clk 0:01:40]}  Nxd7 {[%clk 0:01:54]} 17. Bxa8 {[%clk 0:01:40]}  Qxa8 {[%clk 0:01:55]} 18. O-O {[%clk 0:01:36]}  exf4 {[%clk 0:01:36]} 19. Bxf4 {[%clk 0:01:31]}  Be7 {[%clk 0:01:33]} 20. Qh5+ {[%clk 0:01:26]}  g6 {[%clk 0:01:24]} 21. Qg4 {[%clk 0:01:26]}  e5 {[%clk 0:01:17]} 22. Bh6 {[%clk 0:01:22]}  Qc6 {[%clk 0:01:06]} 23. Bg7 {[%clk 0:01:06]}  Rg8 {[%clk 0:01:00]} 24. Bh6 {[%clk 0:01:06]}  Nf6 {[%clk 0:00:54]} 25. Qc4 {[%clk 0:01:01]}  Qd6 {[%clk 0:00:21]} 26. Rxf6 {[%clk 0:00:38]}  Qd4+ {[%clk 0:00:21]} 27. Qxd4 {[%clk 0:00:39]}  cxd4 {[%clk 0:00:18]} 28. Re6 {[%clk 0:00:29]}  dxc3 {[%clk 0:00:15]} 29. Bg5 {[%clk 0:00:29]}  Rg7 {[%clk 0:00:15]} 30. Rxe5 {[%clk 0:00:27]}  Kd7 {[%clk 0:00:15]} 31. Be3 {[%clk 0:00:22]}  Bf6 {[%clk 0:00:06]} 32. Rd5+ {[%clk 0:00:21]}  Kc6 {[%clk 0:00:05]} 33. Ra5 {[%clk 0:00:19]}  Kb7 {[%clk 0:00:04]} 34. Ra4 {[%clk 0:00:19]}  Re7 {[%clk 0:00:03]} 35. Kf2 {[%clk 0:00:17]}  Bg7 {[%clk 0:00:00]} 36. Rb4+ {[%clk 0:00:15]} 1-0

[Event "December 5 Early 2023"]
[Site "https://www.chess.com"]
[Date "2023.12.05"]
[Round "11"]
[White "Deveci, Huseyin Said"]
[Black "Bonfim, Regina Rodrigues"]
[Result "1-0"]
[Board "147"]
[TimeControl "180+1"]
[WhiteFideId "26322455"]
[BlackFideId "2105667"]
[WhiteElo "2196"]
[BlackElo "1749"]
[WhiteTeam "TUR"]
[BlackTeam "BRA"]
[WhiteClock "0:00:54"]
[BlackClock "0:00:38"]

1. Nf3 {[%clk 0:03:00]}  Nf6 {[%clk 0:02:58]} 2. g3 {[%clk 0:03:01]}  g6 {[%clk 0:02:58]} 3. Bg2 {[%clk 0:03:02]}  c6 {[%clk 0:02:57]} 4. O-O {[%clk 0:03:02]}  d5 {[%clk 0:02:57]} 5. d4 {[%clk 0:03:03]}  Bg7 {[%clk 0:02:56]} 6. c4 {[%clk 0:03:04]}  e6 {[%clk 0:02:56]} 7. Nc3 {[%clk 0:03:05]}  O-O {[%clk 0:02:54]} 8. b3 {[%clk 0:03:06]}  Nbd7 {[%clk 0:02:52]} 9. Bb2 {[%clk 0:03:06]}  dxc4 {[%clk 0:02:51]} 10. bxc4 {[%clk 0:03:06]}  Nb6 {[%clk 0:02:50]} 11. Qb3 {[%clk 0:03:03]}  Re8 {[%clk 0:02:33]} 12. e4 {[%clk 0:03:01]}  Nfd7 {[%clk 0:02:29]} 13. Rad1 {[%clk 0:02:10]}  Nf8 {[%clk 0:02:26]} 14. d5 {[%clk 0:02:05]}  exd5 {[%clk 0:02:26]} 15. exd5 {[%clk 0:02:04]}  cxd5 {[%clk 0:02:25]} 16. Nxd5 {[%clk 0:02:04]}  Nxd5 {[%clk 0:02:25]} 17. Rxd5 {[%clk 0:02:03]}  Qe7 {[%clk 0:02:22]} 18. Bxg7 {[%clk 0:01:59]}  Kxg7 {[%clk 0:02:21]} 19. Qc3+ {[%clk 0:01:57]}  Kg8 {[%clk 0:02:21]} 20. Re1 {[%clk 0:01:56]}  Be6 {[%clk 0:02:20]} 21. Rde5 {[%clk 0:01:42]}  Qc7 {[%clk 0:02:19]} 22. c5 {[%clk 0:01:42]}  Rac8 {[%clk 0:02:17]} 23. Nd4 {[%clk 0:01:41]}  b6 {[%clk 0:02:13]} 24. Nxe6 {[%clk 0:01:35]}  Rxe6 {[%clk 0:02:12]} 25. Bh3 {[%clk 0:01:31]}  Rxe5 {[%clk 0:02:10]} 26. Rxe5 {[%clk 0:01:29]}  Rd8 {[%clk 0:02:04]} 27. c6 {[%clk 0:01:29]}  Rd6 {[%clk 0:01:53]} 28. Bg2 {[%clk 0:01:26]}  f6 {[%clk 0:01:47]} 29. Qc4+ {[%clk 0:01:22]}  Kg7 {[%clk 0:01:46]} 30. Re1 {[%clk 0:01:20]}  h6 {[%clk 0:01:25]} 31. Qe4 {[%clk 0:01:13]}  Re6 {[%clk 0:01:21]} 32. Qb4 {[%clk 0:01:14]}  Rxe1+ {[%clk 0:01:19]} 33. Qxe1 {[%clk 0:01:14]}  Kf7 {[%clk 0:01:16]} 34. Bd5+ {[%clk 0:01:13]}  Kg7 {[%clk 0:01:13]} 35. Qb4 {[%clk 0:01:09]}  h5 {[%clk 0:01:08]} 36. h4 {[%clk 0:01:07]}  Nh7 {[%clk 0:00:59]} 37. Qe4 {[%clk 0:01:00]}  g5 {[%clk 0:00:50]} 38. Qe6 {[%clk 0:00:54]}  gxh4 {[%clk 0:00:38]} 39. Qd7+ {[%clk 0:00:54]} 1-0